fUST/lending_fUST_20250210
["ID","MTS","AMOUNT","RATE_DAILY","PERIOD"]
[352619146,1739202648194,-15619.87,0.00011643,2]
[352619148,1739202648204,-580.46,0.00011643,2]
[352619150,1739202648215,-500.0,0.00011643,2]
[352619152,1739202648228,-353.94850507,0.00011643,2]
[352619154,1739202648238,-500.0,0.00011643,2]
[352619156,1739202648248,-767.98,0.00011643,2]
[352619158,1739202648258,-500.0,0.00011643,2]
[352619160,1739202648268,-500.0,0.00011643,2]
[352619162,1739202648278,-151.0,0.00011643,2]
[352619173,1739202648288,-500.0,0.00011643,2]
[352619175,1739202648381,-500.0,0.00011643,2]
[352619177,1739202648392,-500.0,0.00011643,2]
[352619179,1739202648402,-7290.29,0.00011643,2]
[352619181,1739202648411,-500.0,0.00011643,2]
[352619183,1739202648423,-637.3,0.00011643,2]
[352619185,1739202648434,-500.0,0.00011643,2]
[352619187,1739202648444,-714.7,0.00011643,2]
[352619189,1739202648453,-500.0,0.00011643,2]
[352619191,1739202648464,-500.0,0.00011643,2]
[352619193,1739202648474,-548.48,0.00011643,2]
[352619195,1739202648484,-500.0,0.00011643,2]
[352619197,1739202648494,-1380.01,0.00011643,2]
[352619199,1739202648505,-1198.84,0.00011643,2]
[352619201,1739202648515,-500.0,0.00011643,2]
[352619202,1739202648526,-3405.05,0.00011643,2]
[352619203,1739202648536,-665.96,0.00011643,2]
[352619204,1739202648545,-719.41,0.00011643,2]
[352619205,1739202648555,-500.0,0.00011643,2]
[352619206,1739202648566,-500.0,0.00011643,2]
[352619207,1739202648575,-500.0,0.00011643,2]
[352619208,1739202648585,-151.0,0.00011643,2]
[352619209,1739202648597,-151.0,0.00011643,2]
[352619210,1739202648607,-551.03,0.00011643,2]
[352619211,1739202648617,-500.0,0.00011643,2]
[352619213,1739202648627,-1686.9,0.00011643,2]
[352619215,1739202648636,-1707.89,0.00011643,2]
[352619216,1739202648646,-500.0,0.00011643,2]
[352619218,1739202648655,-500.0,0.00011643,2]
[352619220,1739202648665,-500.0,0.00011643,2]
[352619222,1739202648676,-1024.33,0.00011643,2]
[352619225,1739202648686,-500.0,0.00011643,2]
[352619227,1739202648696,-500.0,0.00011643,2]
[352619229,1739202648706,-519.16,0.00011643,2]
[352619231,1739202648716,-916.58287758,0.00011671,2]
[352619233,1739202648726,-151.0,0.000117,2]
[352619234,1739202648736,-226.8310305,0.000117,2]
[352619236,1739202648746,-306.0,0.000117,2]
[352619238,1739202648755,-500.0,0.0001178,2]
[352619241,1739202648767,-520.60028929,0.0001178,2]
[352619243,1739202648779,-500.0,0.0001178,2]
[352619245,1739202648790,-151.0,0.0001178,2]
[352619247,1739202648801,-151.0,0.0001178,2]
[352619248,1739202648811,-598.41,0.0001178,2]
[352619249,1739202648822,-500.0,0.0001178,2]
[352619250,1739202648832,-500.0,0.0001178,2]
[352619252,1739202648842,-500.0,0.0001178,2]
[352619254,1739202648852,-500.0,0.0001178,2]
[352619256,1739202648861,-500.0,0.0001178,2]
[352619258,1739202648871,-151.0,0.0001178,2]
[352619260,1739202648883,-151.0,0.0001178,2]
[352619262,1739202648892,-500.0,0.0001178,2]
[352619264,1739202648903,-151.0,0.0001178,2]
[352619265,1739202648914,-500.0,0.0001178,2]
[352619266,1739202648928,-537.15448279,0.0001178,2]
[352619267,1739202648938,-500.0,0.0001178,2]
[352619268,1739202648948,-500.0,0.0001178,2]
[352619269,1739202648958,-765.09,0.0001178,2]
[352619270,1739202648967,-500.0,0.0001178,2]
[352619271,1739202648977,-500.0,0.0001178,2]
[352619272,1739202648987,-840.08,0.0001178,2]
[352619273,1739202648999,-682.96,0.0001178,2]
[352619274,1739202649009,-500.0,0.0001178,2]
[352619275,1739202649019,-500.0,0.0001178,2]
[352619276,1739202649030,-500.0,0.0001178,2]
[352619277,1739202649040,-959.53,0.0001178,2]
[352619278,1739202649050,-500.0,0.0001178,2]
[352619279,1739202649060,-183.418955,0.0001178,2]
[352619280,1739202649070,-601.34,0.0001178,2]
[352619281,1739202649081,-183.418955,0.0001178,2]
[352619282,1739202649091,-151.0,0.0001178,2]
[352619283,1739202649102,-5550.25,0.0001178,2]
[352619284,1739202649112,-500.0,0.0001178,2]
[352619285,1739202649122,-500.0,0.0001178,2]
[352619286,1739202649132,-500.0,0.0001178,2]
[352619288,1739202649141,-590.44,0.0001178,2]
[352619290,1739202649151,-929.02,0.0001178,2]
[352619292,1739202649162,-2809.78,0.0001178,2]
[352619294,1739202649172,-500.0,0.0001178,2]
[352619296,1739202649181,-524.23,0.0001178,2]
[352619298,1739202649191,-500.0,0.0001178,2]
[352619300,1739202649200,-607.76,0.0001178,2]
[352619302,1739202649209,-1474.98,0.0001178,2]
[352619304,1739202649219,-760.7,0.0001178,2]
[352619306,1739202649228,-500.0,0.0001178,2]
[352619308,1739202649237,-2308.8,0.0001178,2]
[352619310,1739202649248,-590.75,0.0001178,2]
[352619312,1739202649258,-500.0,0.0001178,2]
[352619314,1739202649268,-15619.87,0.0001178,2]
[352619316,1739202649278,-580.46,0.0001178,2]
[352619318,1739202649288,-500.0,0.0001178,2]
[352619320,1739202649298,-500.0,0.0001178,2]
[352619322,1739202649308,-767.98,0.0001178,2]
[352619324,1739202649318,-500.0,0.0001178,2]
[352619326,1739202649328,-500.0,0.0001178,2]
[352619328,1739202649338,-500.0,0.0001178,2]
[352619330,1739202649348,-500.0,0.0001178,2]
[352619332,1739202649358,-500.0,0.0001178,2]
[352619334,1739202649367,-7290.29,0.0001178,2]
[352619336,1739202649377,-500.0,0.0001178,2]
[352619338,1739202649387,-637.3,0.0001178,2]
[352619340,1739202649396,-500.0,0.0001178,2]
[352619342,1739202649406,-714.7,0.0001178,2]
[352619344,1739202649417,-500.0,0.0001178,2]
[352619346,1739202649426,-548.48,0.0001178,2]
[352619348,1739202649435,-500.0,0.0001178,2]
[352619350,1739202649445,-1380.01,0.0001178,2]
[352619352,1739202649454,-1198.84,0.0001178,2]
[352619354,1739202649464,-500.0,0.0001178,2]
[352619356,1739202649473,-3405.05,0.0001178,2]
[352619358,1739202649482,-665.96,0.0001178,2]
[352619360,1739202649492,-719.41,0.0001178,2]
[352619362,1739202649502,-500.0,0.0001178,2]
[352619364,1739202649511,-500.0,0.0001178,2]
[352619366,1739202649522,-551.03,0.0001178,2]
[352619368,1739202649531,-521.94,0.0001178,2]
[352619370,1739202649541,-1686.9,0.0001178,2]
[352619372,1739202649550,-1707.89,0.0001178,2]
[352619374,1739202649560,-500.0,0.0001178,2]
[352619376,1739202649570,-500.0,0.0001178,2]
[352619378,1739202649579,-1024.33,0.0001178,2]
[352619380,1739202649588,-500.0,0.0001178,2]
[352619383,1739202649598,-500.0,0.0001178,2]
[352619384,1739202649607,-519.16,0.0001178,2]
[352619386,1739202649616,-500.0,0.00011917,2]
[352619389,1739202649626,-567.78415265,0.00011917,2]
[352619391,1739202649635,-598.41,0.00011917,2]
[352619392,1739202649646,-448.04,0.00011917,2]
[352619395,1739202649656,-500.0,0.00011917,2]
[352619397,1739202649666,-500.0,0.00011917,2]
[352619399,1739202649676,-500.0,0.00011917,2]
[352619401,1739202649685,-500.0,0.00011917,2]
[352619403,1739202649694,-500.0,0.00011917,2]
[352619405,1739202649704,-500.0,0.00011917,2]
[352619406,1739202649713,-500.0,0.00011917,2]
[352619409,1739202649723,-765.09,0.00011917,2]
[352619410,1739202649732,-500.0,0.00011917,2]
[352619412,1739202649741,-500.0,0.00011917,2]
[352619414,1739202649756,-840.08,0.00011917,2]
[352619416,1739202649766,-682.96,0.00011917,2]
[352619418,1739202649775,-500.0,0.00011917,2]
[352619420,1739202649785,-500.0,0.00011917,2]
[352619422,1739202649794,-500.0,0.00011917,2]
[352619424,1739202649803,-959.53,0.00011917,2]
[352619434,1739202649881,-500.0,0.00011917,2]
[352619436,1739202649891,-601.34,0.00011917,2]
[352619438,1739202649902,-352.044979,0.00011917,2]
[352619440,1739202649912,-225.411458,0.00011917,2]
[352619442,1739202649930,-352.044979,0.00011917,2]
[352619444,1739202649940,-225.411458,0.00011917,2]
[352619446,1739202649950,-151.0,0.00011917,2]
[352619448,1739202649960,-5550.25,0.00011917,2]
[352619450,1739202649971,-500.0,0.00011917,2]
[352619452,1739202649980,-500.0,0.00011917,2]
[352619454,1739202649990,-528.76481335,0.00011917,2]
[352619456,1739202650001,-590.44,0.00011917,2]
[352619458,1739202650010,-151.0,0.00011917,2]
[352619460,1739202650020,-151.0,0.00011917,2]
[352619462,1739202650029,-929.02,0.00011917,2]
[352619464,1739202650039,-2809.78,0.00011917,2]
[352619466,1739202650049,-1048.422582,0.00011917,2]
[352619468,1739202650059,-1048.422582,0.00011917,2]
[352619469,1739202650068,-500.0,0.00011917,2]
[352619470,1739202650078,-524.23,0.00011917,2]
[352619471,1739202650087,-500.0,0.00011917,2]
[352619472,1739202650097,-607.76,0.00011917,2]
[352619473,1739202650107,-1474.98,0.00011917,2]
[352619474,1739202650116,-760.7,0.00011917,2]
[352619475,1739202650125,-500.0,0.00011917,2]
[352619476,1739202650135,-2308.8,0.00011917,2]
[352619477,1739202650144,-590.75,0.00011917,2]
[352619478,1739202650153,-15619.87,0.00011917,2]
[352619479,1739202650163,-580.46,0.00011917,2]
[352619480,1739202650174,-500.0,0.00011917,2]
[352619481,1739202650183,-500.0,0.00011917,2]
[352619483,1739202650192,-767.98,0.00011917,2]
[352619485,1739202650202,-500.0,0.00011917,2]
[352619487,1739202650211,-500.0,0.00011917,2]
[352619489,1739202650221,-151.0,0.00011917,2]
[352619491,1739202650230,-500.0,0.00011917,2]
[352619493,1739202650240,-500.0,0.00011917,2]
[352619495,1739202650249,-7290.29,0.00011917,2]
[352619497,1739202650259,-507.58,0.00011917,2]
[352619499,1739202650268,-637.3,0.00011917,2]
[352619501,1739202650277,-500.0,0.00011917,2]
[352619503,1739202650286,-714.7,0.00011917,2]
[352619505,1739202650295,-151.0,0.00011917,2]
[352619507,1739202650305,-151.0,0.00011917,2]
[352619509,1739202650314,-151.0,0.00011917,2]
[352619511,1739202650323,-548.48,0.00011917,2]
[352619513,1739202650334,-500.0,0.00011917,2]
[352619515,1739202650343,-167.904118,0.00011917,2]
[352619517,1739202650352,-167.904118,0.00011917,2]
[352619519,1739202650361,-1380.01,0.00011917,2]
[352619521,1739202650371,-1198.84,0.00011917,2]
[352619523,1739202650380,-151.0,0.00011917,2]
[352619525,1739202650389,-500.0,0.00011917,2]
[352619527,1739202650399,-151.0,0.00011917,2]
[352619529,1739202650408,-287.658028,0.00011917,2]
[352619531,1739202650419,-3405.05,0.00011917,2]
[352619533,1739202650428,-665.96,0.00011917,2]
[352619535,1739202650438,-719.41,0.00011917,2]
[352619537,1739202650447,-500.0,0.00011917,2]
[352619539,1739202650456,-500.0,0.00011917,2]
[352619541,1739202650469,-151.0,0.00011917,2]
[352619543,1739202650481,-151.0,0.00011917,2]
[352619545,1739202650490,-551.03,0.00011917,2]
[352619547,1739202650499,-1686.9,0.00011917,2]
[352619549,1739202650509,-500.0,0.00011917,2]
[352619551,1739202650518,-1707.89,0.00011917,2]
[352619553,1739202650527,-500.0,0.00011917,2]
[352619555,1739202650537,-1024.33,0.00011917,2]
[352619557,1739202650547,-500.0,0.00011917,2]
[352619559,1739202650556,-500.0,0.00011917,2]
[352619561,1739202650567,-519.16,0.00011917,2]
[352619563,1739202650576,-267.79380205,0.00011942,2]
[352619565,1739202650586,-151.0,0.00012,2]
[352619567,1739202650595,-1000.0,0.00012,2]
[352619569,1739202650605,-500.0,0.00012054,2]
[352619571,1739202650614,-151.0,0.00012054,2]
[352619573,1739202650624,-151.0,0.00012054,2]
[352619575,1739202650635,-598.41,0.00012054,2]
[352619577,1739202650644,-500.0,0.00012054,2]
[352619579,1739202650653,-151.0,0.00012054,2]
[352619581,1739202650662,-500.0,0.00012054,2]
[352619583,1739202650672,-500.0,0.00012054,2]
[352619585,1739202650681,-500.0,0.00012054,2]
[352619587,1739202650690,-151.0,0.00012054,2]
[352619589,1739202650699,-151.0,0.00012054,2]
[352619591,1739202650708,-500.0,0.00012054,2]
[352619592,1739202650717,-500.0,0.00012054,2]
[352619594,1739202650727,-293.221108,0.00012054,2]
[352619597,1739202650736,-401.083147,0.00012054,2]
[352619599,1739202650746,-401.083147,0.00012054,2]
[352619601,1739202650756,-500.0,0.00012054,2]
[352619603,1739202650765,-765.09,0.00012054,2]
[352619605,1739202650776,-500.0,0.00012054,2]
[352619607,1739202650786,-500.0,0.00012054,2]
[352619609,1739202650795,-840.08,0.00012054,2]
[352619611,1739202650804,-682.96,0.00012054,2]
[352619613,1739202650814,-500.0,0.00012054,2]
[352619614,1739202650823,-241.470864,0.00012054,2]
[352619617,1739202650833,-241.470864,0.00012054,2]
[352619618,1739202650843,-500.0,0.00012054,2]
[352619620,1739202650852,-500.0,0.00012054,2]
[352619623,1739202650862,-151.0,0.00012054,2]
[352619625,1739202650871,-959.53,0.00012054,2]
[352619626,1739202650880,-151.0,0.00012054,2]
[352619629,1739202650890,-500.0,0.00012054,2]
[352619630,1739202650899,-601.34,0.00012054,2]
[352619632,1739202650908,-5550.25,0.00012054,2]
[352619635,1739202650920,-500.0,0.00012054,2]
[352619636,1739202650931,-500.0,0.00012054,2]
[352619638,1739202650940,-590.44,0.00012054,2]
[352619640,1739202650950,-929.02,0.00012054,2]
[352619642,1739202650959,-2809.78,0.00012054,2]
[352619645,1739202650970,-500.0,0.00012054,2]
[352619646,1739202650979,-524.23,0.00012054,2]
[352619648,1739202650989,-204.43537494,0.00012054,2]
[352619650,1739202651000,-607.76,0.00012054,2]
[352619652,1739202651010,-1474.98,0.00012054,2]
[352619654,1739202651020,-760.7,0.00012054,2]
[352619656,1739202651029,-500.0,0.00012054,2]
[352619658,1739202651039,-2308.8,0.00012054,2]
[352619660,1739202651048,-590.75,0.00012054,2]
[352619662,1739202651058,-15619.87,0.00012054,2]
[352619664,1739202651067,-580.46,0.00012054,2]
[352619666,1739202651077,-500.0,0.00012054,2]
[352619668,1739202651086,-500.0,0.00012054,2]
[352619670,1739202651095,-767.98,0.00012054,2]
[352619672,1739202651104,-500.0,0.00012054,2]
[352619675,1739202651114,-500.0,0.00012054,2]
[352619676,1739202651123,-500.0,0.00012054,2]
[352619678,1739202651132,-500.0,0.00012054,2]
[352619680,1739202651142,-7290.29,0.00012054,2]
[352619683,1739202651151,-637.3,0.00012054,2]
[352619692,1739202651227,-500.0,0.00012054,2]
[352619694,1739202651236,-714.7,0.00012054,2]
[352619696,1739202651246,-548.48,0.00012054,2]
[352619698,1739202651255,-500.0,0.00012054,2]
[352619700,1739202651264,-1380.01,0.00012054,2]
[352619702,1739202651273,-1198.84,0.00012054,2]
[352619704,1739202651282,-500.0,0.00012054,2]
[352619706,1739202651292,-3405.05,0.00012054,2]
[352619708,1739202651302,-665.96,0.00012054,2]
[352619710,1739202651311,-719.41,0.00012054,2]
[352619712,1739202651321,-500.0,0.00012054,2]
[352619714,1739202651330,-500.0,0.00012054,2]
[352619716,1739202651339,-551.03,0.00012054,2]
[352619718,1739202651349,-1686.9,0.00012054,2]
[352619720,1739202651358,-500.0,0.00012054,2]
[352619722,1739202651367,-1707.89,0.00012054,2]
[352619724,1739202651377,-500.0,0.00012054,2]
[352619727,1739202651386,-1024.33,0.00012054,2]
[352619729,1739202651395,-500.0,0.00012054,2]
[352619731,1739202651405,-500.0,0.00012054,2]
[352619733,1739202651415,-519.16,0.00012054,2]
[352619734,1739202651424,-1009.3006607,0.00012091,2]
[352619736,1739202651433,-500.0,0.00012108,2]
[352619739,1739202651444,-268.58843475,0.00012115,2]
[352619741,1739202651453,-500.0,0.00012191,2]
[352619743,1739202651462,-598.41,0.00012191,2]
[352619745,1739202651472,-500.0,0.00012191,2]
[352619747,1739202651481,-500.0,0.00012191,2]
[352619749,1739202651490,-500.0,0.00012191,2]
[352619750,1739202651500,-647.6,0.00012191,2]
[352619752,1739202651509,-500.0,0.00012191,2]
[352619754,1739202651518,-500.0,0.00012191,2]
[352619757,1739202651528,-500.0,0.00012191,2]
[352619759,1739202651537,-765.09,0.00012191,2]
[352619760,1739202651546,-500.0,0.00012191,2]
[352619761,1739202651556,-500.0,0.00012191,2]
[352619762,1739202651565,-840.08,0.00012191,2]
[352619763,1739202651575,-682.96,0.00012191,2]
[352619764,1739202651584,-500.0,0.00012191,2]
[352619765,1739202651593,-500.0,0.00012191,2]
[352619766,1739202651603,-500.0,0.00012191,2]
[352619767,1739202651612,-959.53,0.00012191,2]
[352619768,1739202651621,-500.0,0.00012191,2]
[352619769,1739202651631,-183.418955,0.00012191,2]
[352619771,1739202651640,-601.34,0.00012191,2]
[352619773,1739202651649,-183.418955,0.00012191,2]
[352619775,1739202651659,-5550.25,0.00012191,2]
[352619777,1739202651668,-500.0,0.00012191,2]
[352619779,1739202651678,-500.0,0.00012191,2]
[352619781,1739202651688,-590.44,0.00012191,2]
[352619783,1739202651697,-929.02,0.00012191,2]
[352619786,1739202651707,-2809.78,0.00012191,2]
[352619788,1739202651716,-500.0,0.00012191,2]
[352619790,1739202651726,-524.23,0.00012191,2]
[352619791,1739202651747,-607.76,0.00012191,2]
[352619794,1739202651764,-1474.98,0.00012191,2]
[352619796,1739202651774,-760.7,0.00012191,2]
[352619798,1739202651785,-500.0,0.00012191,2]
[352619800,1739202651795,-2308.8,0.00012191,2]
[352619802,1739202651805,-590.75,0.00012191,2]
[352619804,1739202651818,-15619.87,0.00012191,2]
[352619807,1739202651834,-580.46,0.00012191,2]
[352619809,1739202651849,-500.0,0.00012191,2]
[352619812,1739202651866,-767.98,0.00012191,2]
[352619815,1739202651884,-500.0,0.00012191,2]
[352619818,1739202651901,-500.0,0.00012191,2]
[352619821,1739202651921,-500.0,0.00012191,2]
[352619823,1739202651939,-7290.29,0.00012191,2]
[352619826,1739202651955,-637.3,0.00012191,2]
[352619829,1739202651971,-500.0,0.00012191,2]
[352619831,1739202651985,-714.7,0.00012191,2]
[352619834,1739202652002,-151.0,0.00012191,2]
[352619836,1739202652019,-189.723394,0.00012191,2]
[352619839,1739202652038,-151.0,0.00012191,2]
[352619842,1739202652055,-548.48,0.00012191,2]
[352619844,1739202652068,-500.0,0.00012191,2]
[352619847,1739202652083,-167.904118,0.00012191,2]
[352619849,1739202652102,-167.904118,0.00012191,2]
[352619852,1739202652116,-1380.01,0.00012191,2]
[352619854,1739202652131,-1198.84,0.00012191,2]
[352619857,1739202652144,-151.0,0.00012191,2]
[352619859,1739202652157,-500.0,0.00012191,2]
[352619861,1739202652173,-151.0,0.00012191,2]
[352619864,1739202652187,-3405.05,0.00012191,2]
[352619866,1739202652200,-665.96,0.00012191,2]
[352619869,1739202652213,-719.41,0.00012191,2]
[352619871,1739202652227,-500.0,0.00012191,2]
[352619874,1739202652240,-500.0,0.00012191,2]
[352619876,1739202652254,-551.03,0.00012191,2]
[352619878,1739202652267,-1686.9,0.00012191,2]
[352619881,1739202652280,-500.0,0.00012191,2]
[352619883,1739202652293,-1707.89,0.00012191,2]
[352619884,1739202652306,-617.53478869,0.00012191,2]
[352619886,1739202652320,-1024.33,0.00012191,2]
[352619888,1739202652332,-500.0,0.00012191,2]
[352619890,1739202652345,-500.0,0.00012191,2]
[352619891,1739202652359,-173.481,0.00012239,2]
[352619893,1739202652372,-251.47503002,0.00012244,2]
[352619895,1739202652385,-151.0,0.000123,2]
[352619897,1739202652397,-500.0,0.00012328,2]
[352619898,1739202652411,-348.354644,0.00012328,2]
[352619900,1739202652424,-151.0,0.00012328,2]
[352619902,1739202652437,-151.0,0.00012328,2]
[352619903,1739202652449,-598.41,0.00012328,2]
[352619905,1739202652463,-500.0,0.00012328,2]
[352619907,1739202652476,-500.0,0.00012328,2]
[352619909,1739202652489,-272.96,0.00012328,2]
[352619911,1739202652502,-151.0,0.00012328,2]
[352619912,1739202652515,-151.0,0.00012328,2]
[352619914,1739202652528,-287.884997,0.00012328,2]
[352619916,1739202652540,-359.31,0.00012328,2]
[352619918,1739202652553,-500.0,0.00012328,2]
[352619920,1739202652566,-500.0,0.00012328,2]
[352619922,1739202652579,-765.09,0.00012328,2]
[352619924,1739202652593,-500.0,0.00012328,2]
[352619926,1739202652606,-500.0,0.00012328,2]
[352619928,1739202652620,-840.08,0.00012328,2]
[352619930,1739202652633,-682.96,0.00012328,2]
[352619931,1739202652646,-500.0,0.00012328,2]
[352619933,1739202652660,-500.0,0.00012328,2]
[352619935,1739202652674,-500.0,0.00012328,2]
[352619944,1739202652781,-959.53,0.00012328,2]
[352619946,1739202652798,-500.0,0.00012328,2]
[352619947,1739202652808,-601.34,0.00012328,2]
[352619949,1739202652817,-352.044979,0.00012328,2]
[352619951,1739202652826,-225.411458,0.00012328,2]
[352619952,1739202652836,-352.044979,0.00012328,2]
[352619954,1739202652845,-225.411458,0.00012328,2]
[352619956,1739202652854,-151.0,0.00012328,2]
[352619957,1739202652864,-5550.25,0.00012328,2]
[352619959,1739202652873,-500.0,0.00012328,2]
[352619961,1739202652883,-500.0,0.00012328,2]
[352619962,1739202652892,-590.44,0.00012328,2]
[352619964,1739202652901,-151.0,0.00012328,2]
[352619966,1739202652911,-151.0,0.00012328,2]
[352619967,1739202652922,-929.02,0.00012328,2]
[352619969,1739202652934,-2809.78,0.00012328,2]
[352619971,1739202652943,-1048.422582,0.00012328,2]
[352619972,1739202652952,-1048.422582,0.00012328,2]
[352619974,1739202652963,-500.0,0.00012328,2]
[352619976,1739202652972,-524.23,0.00012328,2]
[352619977,1739202652982,-607.76,0.00012328,2]
[352619979,1739202652991,-1474.98,0.00012328,2]
[352619981,1739202653001,-500.0,0.00012328,3]
[352619982,1739202653011,-500.0,0.00012328,3]
[352619984,1739202653021,-500.0,0.00012328,3]
[352619986,1739202653030,-760.7,0.00012328,2]
[352619987,1739202653039,-291.19,0.00012328,2]
[352619989,1739202653048,-2308.8,0.00012328,2]
[352619991,1739202653058,-590.75,0.00012328,2]
[352619992,1739202653067,-15619.87,0.00012328,2]
[352619994,1739202653077,-580.46,0.00012328,2]
[352619996,1739202653086,-500.0,0.00012328,2]
[352619997,1739202653096,-767.98,0.00012328,2]
[352619999,1739202653106,-500.0,0.00012328,2]
[352620001,1739202653115,-151.0,0.00012328,2]
[352620003,1739202653125,-500.0,0.00012328,2]
[352620005,1739202653134,-500.0,0.00012328,2]
[352620007,1739202653144,-7290.29,0.00012328,2]
[352620009,1739202653153,-637.3,0.00012328,2]
[352620011,1739202653163,-500.0,0.00012328,2]
[352620013,1739202653174,-714.7,0.00012328,2]
[352620015,1739202653183,-548.48,0.00012328,2]
[352620017,1739202653193,-500.0,0.00012328,2]
[352620019,1739202653202,-1380.01,0.00012328,2]
[352620021,1739202653212,-1198.84,0.00012328,2]
[352620023,1739202653221,-500.0,0.00012328,2]
[352620025,1739202653231,-3405.05,0.00012328,2]
[352620026,1739202653239,-665.96,0.00012328,2]
[352620027,1739202653249,-719.41,0.00012328,2]
[352620028,1739202653259,-500.0,0.00012328,2]
[352620029,1739202653268,-500.0,0.00012328,2]
[352620030,1739202653278,-151.0,0.00012328,2]
[352620031,1739202653287,-151.0,0.00012328,2]
[352620032,1739202653296,-551.03,0.00012328,2]
[352620033,1739202653305,-1686.9,0.00012328,2]
[352620034,1739202653315,-500.0,0.00012328,2]
[352620035,1739202653324,-1707.89,0.00012328,2]
[352620036,1739202653335,-1024.33,0.00012328,2]
[352620037,1739202653345,-500.0,0.00012328,2]
[352620038,1739202653355,-500.0,0.00012328,2]
[352620039,1739202653364,-2538.58172982,0.00012465,5]
[352620040,1739202653374,-6406.96271985,0.00012465,5]
[352620041,1739202653383,-500.0,0.00012465,2]
[352620042,1739202653392,-598.41,0.00012465,2]
[352620043,1739202653402,-500.0,0.00012465,2]
[352620044,1739202653412,-500.0,0.00012465,2]
[352620045,1739202653422,-151.0,0.00012465,2]
[352620047,1739202653431,-500.0,0.00012465,2]
[352620048,1739202653441,-401.083147,0.00012465,2]
[352620049,1739202653451,-401.083147,0.00012465,2]
[352620051,1739202653460,-500.0,0.00012465,2]
[352620053,1739202653470,-765.09,0.00012465,2]
[352620055,1739202653479,-500.0,0.00012465,2]
[352620057,1739202653489,-500.0,0.00012465,2]
[352620059,1739202653500,-840.08,0.00012465,2]
[352620061,1739202653509,-682.96,0.00012465,2]
[352620063,1739202653519,-500.0,0.00012465,2]
[352620065,1739202653529,-241.470864,0.00012465,2]
[352620067,1739202653538,-241.470864,0.00012465,2]
[352620069,1739202653548,-628.9,0.00012465,2]
[352620071,1739202653558,-500.0,0.00012465,2]
[352620073,1739202653570,-151.0,0.00012465,2]
[352620075,1739202653580,-959.53,0.00012465,2]
[352620077,1739202653590,-151.0,0.00012465,2]
[352620079,1739202653599,-500.0,0.00012465,2]
[352620081,1739202653609,-601.34,0.00012465,2]
[352620083,1739202653619,-5550.25,0.00012465,2]
[352620085,1739202653629,-500.0,0.00012465,2]
[352620087,1739202653639,-500.0,0.00012465,2]
[352620089,1739202653648,-590.44,0.00012465,2]
[352620091,1739202653658,-929.02,0.00012465,2]
[352620093,1739202653668,-2809.78,0.00012465,2]
[352620095,1739202653678,-500.0,0.00012465,2]
[352620097,1739202653687,-524.23,0.00012465,2]